fUST/lending_fUST_20250718
["ID","MTS","AMOUNT","RATE_DAILY","PERIOD"]
[372824023,1752773457366,-460.0,0.00017772,2]
[372824025,1752773457377,-822.83,0.00017772,2]
[372824027,1752773457387,-463.50593614,0.00017772,2]
[372824029,1752773457396,-460.0,0.00017772,2]
[372824031,1752773457406,-460.0,0.00017772,2]
[372824033,1752773457415,-460.0,0.00017772,2]
[372824035,1752773457424,-2833.79,0.00017772,2]
[372824037,1752773457434,-460.0,0.00017772,2]
[372824039,1752773457443,-223.287329,0.00017772,2]
[372824041,1752773457453,-223.287329,0.00017772,2]
[372824043,1752773457462,-460.0,0.00017772,2]
[372824045,1752773457471,-460.0,0.00017772,2]
[372824047,1752773457481,-1025.85,0.00017772,2]
[372824049,1752773457491,-180.01716256,0.00017772,2]
[372824052,1752773457500,-460.0,0.00017772,2]
[372824053,1752773457510,-460.0,0.00017773,2]
[372824056,1752773457519,-460.0,0.00017773,2]
[372824058,1752773457528,-170.645196,0.00017773,2]
[372824060,1752773457538,-170.645196,0.00017773,2]
[372824062,1752773457547,-460.0,0.00017773,2]
[372824064,1752773457556,-460.0,0.00017773,2]
[372824066,1752773457565,-460.0,0.00017773,2]
[372824068,1752773457575,-460.0,0.00017773,2]
[372824070,1752773457584,-460.0,0.00017773,2]
[372824072,1752773457593,-463.6047221,0.00017773,2]
[372824074,1752773457602,-460.0,0.00017773,2]
[372824076,1752773457611,-460.0,0.00017773,2]
[372824078,1752773457621,-460.0,0.00017773,2]
[372824080,1752773457630,-460.0,0.00017773,2]
[372824082,1752773457642,-460.0,0.00017773,2]
[372824084,1752773457651,-460.0,0.00017773,2]
[372824086,1752773457661,-460.0,0.00017773,2]
[372824088,1752773457670,-460.0,0.00017773,2]
[372824090,1752773457680,-460.0,0.00017773,2]
[372824092,1752773457689,-460.0,0.00017773,2]
[372824094,1752773457699,-168.0,0.0001779,2]
[372824096,1752773457708,-268.424204,0.00017831,2]
[372824098,1752773457718,-268.424211,0.00017831,2]
[372824100,1752773457727,-7301.37818384,0.00017831,2]
[372824102,1752773457736,-390.3536995,0.00017843,2]
[372824104,1752773457745,-1551.0,0.00017934,2]
[372824106,1752773457755,-260.0,0.0001803,2]
[372824108,1752773457764,-714.4,0.00018035,3]
[372824110,1752773457774,-357.2,0.00018035,3]
[372824112,1752773457783,-2393.94,0.00018036,3]
[372824114,1752773457793,-1196.96,0.00018036,3]
[372824116,1752773457803,-598.48,0.00018036,3]
[372824118,1752773457812,-151.0,0.0001804,2]
[372824120,1752773457821,-151.0,0.0001804,2]
[372824121,1752773457832,-151.0,0.0001804,2]
[372824122,1752773457841,-151.0,0.0001804,2]
[372824124,1752773457958,-151.0,0.0001804,2]
[372824126,1752773457968,-1028.0,0.00018045,2]
[372824128,1752773457977,-414.89327024,0.00018045,2]
[372824130,1752773457987,-500.0,0.00018045,2]
[372824132,1752773457997,-471.55135666,0.00018045,2]
[372824134,1752773458006,-460.0,0.00018045,2]
[372824136,1752773458015,-591.26,0.00018045,2]
[372824138,1752773458026,-460.0,0.00018045,2]
[372824140,1752773458036,-578.6598298,0.00018045,2]
[372824142,1752773458045,-1795.63,0.00018045,2]
[372824144,1752773458054,-408.630794,0.00018045,2]
[372824146,1752773458064,-408.630794,0.00018045,2]
[372824148,1752773458073,-460.0,0.00018045,2]
[372824150,1752773458083,-460.0,0.00018045,2]
[372824152,1752773458093,-1160.32,0.00018045,2]
[372824154,1752773458102,-460.0,0.00018045,2]
[372824156,1752773458111,-460.0,0.00018045,2]
[372824158,1752773458120,-460.0,0.00018045,2]
[372824160,1752773458130,-460.0,0.00018045,2]
[372824162,1752773458141,-460.0,0.00018045,2]
[372824164,1752773458151,-460.0,0.00018045,2]
[372824166,1752773458161,-1158.91,0.00018045,2]
[372824168,1752773458174,-1432.68,0.00018045,2]
[372824170,1752773458185,-460.0,0.00018045,2]
[372824172,1752773458195,-460.0,0.00018045,2]
[372824174,1752773458204,-460.0,0.00018045,2]
[372824176,1752773458215,-460.0,0.00018045,2]
[372824178,1752773458224,-460.0,0.00018045,2]
[372824180,1752773458233,-460.0,0.00018045,2]
[372824182,1752773458243,-936.14,0.00018045,2]
[372824184,1752773458252,-460.0,0.00018045,2]
[372824186,1752773458262,-460.0,0.00018045,2]
[372824188,1752773458271,-2671.87,0.00018045,2]
[372824190,1752773458280,-797.47,0.00018045,2]
[372824192,1752773458289,-460.0,0.00018045,2]
[372824193,1752773458299,-460.0,0.00018045,2]
[372824195,1752773458308,-492.74,0.00018045,2]
[372824197,1752773458318,-460.0,0.00018045,2]
[372824199,1752773458327,-460.0,0.00018045,2]
[372824201,1752773458338,-460.0,0.00018045,2]
[372824203,1752773458347,-816.79,0.00018045,2]
[372824205,1752773458357,-460.0,0.00018045,2]
[372824207,1752773458366,-460.0,0.00018045,2]
[372824209,1752773458375,-805.05,0.00018045,2]
[372824211,1752773458385,-460.0,0.00018045,2]
[372824213,1752773458394,-460.0,0.00018045,2]
[372824215,1752773458403,-377.159111,0.00018045,2]
[372824217,1752773458413,-1238.0,0.00018046,2]
[372824219,1752773458422,-460.0,0.00018046,2]
[372824221,1752773458431,-460.0,0.00018046,2]
[372824224,1752773458441,-301.95,0.00018046,2]
[372824226,1752773458450,-460.0,0.00018046,2]
[372824228,1752773458460,-460.0,0.00018046,2]
[372824230,1752773458469,-460.0,0.00018046,2]
[372824232,1752773458478,-594.34890755,0.00018046,2]
[372824234,1752773458487,-460.0,0.00018046,2]
[372824236,1752773458497,-460.0,0.00018046,2]
[372824238,1752773458506,-460.0,0.00018046,2]
[372824240,1752773458516,-460.0,0.00018046,2]
[372824242,1752773458525,-1039.19,0.00018046,2]
[372824244,1752773458534,-759.87,0.00018046,2]
[372824246,1752773458544,-460.0,0.00018046,2]
[372824248,1752773458554,-460.0,0.00018046,2]
[372824250,1752773458563,-460.0,0.00018046,2]
[372824252,1752773458572,-642.67,0.00018046,2]
[372824254,1752773458582,-173.64236917,0.00018046,2]
[372824255,1752773458591,-151.0,0.00018046,2]
[372824257,1752773458600,-1332.47,0.00018046,2]
[372824259,1752773458610,-460.0,0.00018046,2]
[372824261,1752773458619,-460.0,0.00018046,2]
[372824263,1752773458628,-460.0,0.00018046,2]
[372824265,1752773458639,-460.0,0.00018046,2]
[372824267,1752773458648,-460.0,0.00018046,2]
[372824269,1752773458657,-465.29565872,0.00018046,2]
[372824271,1752773458668,-460.0,0.00018046,2]
[372824273,1752773458677,-460.0,0.00018046,2]
[372824275,1752773458686,-822.83,0.00018046,2]
[372824277,1752773458695,-460.0,0.00018046,2]
[372824279,1752773458705,-460.0,0.00018046,2]
[372824281,1752773458714,-460.0,0.00018046,2]
[372824283,1752773458724,-2833.79,0.00018046,2]
[372824285,1752773458733,-363.65431813,0.00018046,2]
[372824287,1752773458743,-460.0,0.00018046,2]
[372824289,1752773458753,-460.0,0.00018046,2]
[372824291,1752773458762,-1025.85,0.00018046,2]
[372824293,1752773458771,-460.0,0.00018046,2]
[372824296,1752773458781,-495.27217135,0.00018047,2]
[372824297,1752773458790,-359.5898302,0.00018047,2]
[372824299,1752773458800,-460.0,0.00018047,2]
[372824301,1752773458809,-460.0,0.00018047,2]
[372824303,1752773458819,-460.0,0.00018047,2]
[372824305,1752773458829,-557.94337941,0.00018047,2]
[372824307,1752773458838,-460.0,0.00018047,2]
[372824310,1752773458847,-151.0,0.00018047,2]
[372824311,1752773458857,-460.0,0.00018047,2]
[372824314,1752773458867,-163.772039,0.00018047,2]
[372824315,1752773458876,-163.772039,0.00018047,2]
[372824317,1752773458885,-460.0,0.00018047,2]
[372824319,1752773458896,-569.1068489,0.00018047,2]
[372824321,1752773458905,-460.0,0.00018047,2]
[372824324,1752773458915,-223.287329,0.00018047,2]
[372824326,1752773458925,-223.287329,0.00018047,2]
[372824328,1752773458934,-151.0,0.00018049,2]
[372824330,1752773458943,-151.055976,0.0001805,2]
[372824332,1752773458953,-2680.42124,0.0001805,2]
[372824333,1752773458963,-2680.42124,0.0001805,2]
[372824335,1752773458973,-1164.105186,0.0001805,2]
[372824337,1752773458983,-1164.105186,0.0001805,2]
[372824339,1752773458992,-151.0,0.00018053,2]
[372824341,1752773459002,-230.85589339,0.00018101,2]
[372824344,1752773459011,-160.0,0.00018101,2]
[372824345,1752773459021,-160.0,0.00018101,2]
[372824348,1752773459031,-12607.95677342,0.00018101,2]
[372824350,1752773459040,-160.0,0.00018101,2]
[372824351,1752773459049,-839.15451687,0.00018101,2]
[372824353,1752773459058,-214.44804168,0.00018101,2]
[372824355,1752773459068,-215.59244943,0.00018101,2]
[372824357,1752773459078,-476.16111942,0.00018101,2]
[372824360,1752773459087,-525.67742785,0.00018101,2]
[372824362,1752773459097,-160.0,0.00018101,2]
[372824363,1752773459106,-160.0,0.00018101,2]
[372824365,1752773459115,-160.0,0.00018101,2]
[372824367,1752773459124,-160.0,0.00018101,2]
[372824369,1752773459133,-160.0,0.00018103,2]
[372824371,1752773459143,-151.0,0.00018107,2]
[372824373,1752773459153,-688.509591,0.00018107,2]
[372824376,1752773459163,-151.0,0.00018107,2]
[372824377,1752773459175,-688.509591,0.00018107,2]
[372824379,1752773459185,-334.526732,0.00018107,2]
[372824382,1752773459195,-334.526732,0.00018107,2]
[372824383,1752773459204,-151.0,0.00018107,2]
[372824385,1752773459214,-334.063091,0.00018107,2]
[372824387,1752773459223,-334.063091,0.00018107,2]
[372824390,1752773459233,-170.645196,0.00018107,2]
[372824392,1752773459243,-170.645196,0.00018107,2]
[372824393,1752773459253,-209.072414,0.00018107,2]
[372824395,1752773459262,-315.944094,0.00018107,2]
[372824398,1752773459271,-209.072414,0.00018107,2]
[372824400,1752773459281,-315.944094,0.00018107,2]
[372824401,1752773459290,-151.0,0.00018107,2]
[372824403,1752773459299,-151.0,0.00018107,2]
[372824405,1752773459309,-151.0,0.00018107,2]
[372824408,1752773459318,-608.802714,0.00018107,2]
[372824409,1752773459327,-608.802714,0.00018107,2]
[372824411,1752773459338,-151.0,0.00018107,2]
[372824413,1752773459347,-162.218661,0.00018107,2]
[372824415,1752773459357,-162.218661,0.00018107,2]
[372824418,1752773459367,-720.612448,0.00018107,2]
[372824420,1752773459377,-720.612448,0.00018107,2]
[372824421,1752773459388,-173.209,0.00018107,2]
[372824423,1752773459397,-173.209,0.00018107,2]
[372824425,1752773459407,-286.975917,0.00018107,2]
[372824427,1752773459416,-286.975917,0.00018107,2]
[372824429,1752773459427,-420.0,0.00018111,2]
[372824431,1752773459437,-151.0,0.00018136,2]
[372824434,1752773459449,-151.0,0.00018136,2]
[372824435,1752773459460,-235.297379,0.00018136,2]
[372824437,1752773459470,-235.297379,0.00018136,2]
[372824439,1752773459479,-1397.806462,0.00018136,2]
[372824441,1752773459489,-1397.806462,0.00018136,2]
[372824443,1752773459498,-151.0,0.00018136,2]
[372824445,1752773459509,-151.0,0.00018136,2]
[372824447,1752773459518,-408.630794,0.00018136,2]
[372824449,1752773459528,-408.630794,0.00018136,2]
[372824451,1752773459537,-377.159111,0.00018136,2]
[372824453,1752773459546,-25000.0,0.00018136,2]
[372824455,1752773459556,-151.0,0.00018141,2]
[372824457,1752773459565,-163.772039,0.00018141,2]
[372824459,1752773459575,-163.772039,0.00018141,2]
[372824461,1752773459584,-223.287329,0.00018141,2]
[372824463,1752773459593,-223.287329,0.00018141,2]
[372824465,1752773459603,-7301.37818384,0.00018141,2]
[372824467,1752773459612,-168.0,0.00018265,2]
[372824469,1752773459621,-1028.0,0.00018319,2]
[372824471,1752773459630,-500.0,0.00018319,2]
[372824473,1752773459640,-591.26,0.00018319,2]
[372824475,1752773459649,-188.93434903,0.00018319,2]
[372824477,1752773459658,-1795.63,0.00018319,2]
[372824479,1752773459667,-441.73195802,0.00018319,2]
[372824481,1752773459677,-460.0,0.00018319,2]
[372824483,1752773459686,-1160.32,0.00018319,2]
[372824485,1752773459696,-460.0,0.00018319,2]
[372824487,1752773459705,-460.0,0.00018319,2]
[372824489,1752773459715,-460.0,0.00018319,2]
[372824491,1752773459725,-460.0,0.00018319,2]
[372824493,1752773459734,-460.0,0.00018319,2]
[372824495,1752773459744,-460.0,0.00018319,2]
[372824497,1752773459753,-1158.91,0.00018319,2]
[372824499,1752773459762,-1432.68,0.00018319,2]
[372824501,1752773459772,-481.2,0.00018319,2]
[372824503,1752773459782,-460.0,0.00018319,2]
[372824505,1752773459791,-460.0,0.00018319,2]
[372824507,1752773459800,-460.0,0.00018319,2]
[372824509,1752773459810,-936.14,0.00018319,2]
[372824511,1752773459820,-460.0,0.00018319,2]
[372824513,1752773459830,-471.36502063,0.00018319,2]
[372824515,1752773459839,-2671.87,0.00018319,2]
[372824517,1752773459849,-797.47,0.00018319,2]
[372824519,1752773459858,-460.0,0.00018319,2]
[372824521,1752773459867,-460.0,0.00018319,2]
[372824523,1752773459876,-460.0,0.00018319,2]
[372824525,1752773459885,-460.0,0.00018319,2]
[372824527,1752773459895,-317.75482416,0.00018319,2]
[372824529,1752773459904,-816.79,0.00018319,2]
[372824531,1752773459913,-460.0,0.00018319,2]
[372824533,1752773459922,-805.05,0.00018319,2]
[372824535,1752773459931,-460.0,0.00018319,2]
[372824537,1752773459940,-338.61,0.00018319,2]
[372824539,1752773459949,-460.0,0.00018319,2]
[372824541,1752773459959,-1238.0,0.0001832,2]
[372824543,1752773459968,-460.0,0.0001832,2]
[372824545,1752773459978,-460.0,0.0001832,2]
[372824547,1752773459987,-460.0,0.0001832,2]
[372824549,1752773459997,-472.25,0.0001832,2]
[372824551,1752773460006,-2680.42124,0.0001832,2]
[372824553,1752773460015,-2680.42124,0.0001832,2]
[372824555,1752773460025,-460.0,0.0001832,2]
[372824556,1752773460034,-460.0,0.0001832,2]
[372824557,1752773460142,-1039.19,0.0001832,2]
[372824558,1752773460152,-1164.105186,0.0001832,2]
[372824559,1752773460161,-1164.105186,0.0001832,2]
[372824560,1752773460173,-759.87,0.0001832,2]
[372824561,1752773460182,-460.0,0.0001832,2]
[372824562,1752773460192,-460.0,0.0001832,2]
[372824563,1752773460202,-642.67,0.0001832,2]
[372824564,1752773460212,-1332.47,0.0001832,2]
[372824565,1752773460221,-463.69,0.0001832,2]
[372824566,1752773460231,-317.34600184,0.0001832,2]
[372824567,1752773460240,-460.0,0.0001832,2]
[372824568,1752773460252,-460.0,0.0001832,2]
[372824569,1752773460262,-460.0,0.0001832,2]
[372824570,1752773460272,-822.83,0.0001832,2]
[372824571,1752773460282,-460.0,0.0001832,2]
[372824572,1752773460291,-460.0,0.0001832,2]
[372824573,1752773460301,-460.0,0.0001832,2]
[372824574,1752773460311,-2833.79,0.0001832,2]
[372824575,1752773460321,-460.0,0.0001832,2]
[372824577,1752773460330,-460.0,0.0001832,2]
[372824578,1752773460339,-1025.85,0.0001832,2]
[372824580,1752773460348,-460.0,0.0001832,2]
[372824582,1752773460358,-460.0,0.00018321,2]
[372824584,1752773460368,-427.39978433,0.00018321,2]
[372824586,1752773460377,-460.0,0.00018321,2]
[372824588,1752773460387,-168.0,0.00018323,2]
[372824590,1752773460397,-645.702797,0.00018324,2]
[372824592,1752773460407,-645.702797,0.00018324,2]
[372824594,1752773460416,-170.645196,0.00018324,2]
[372824596,1752773460425,-170.645196,0.00018324,2]
[372824598,1752773460435,-151.080823,0.00018344,2]
[372824600,1752773460444,-151.0,0.00018344,2]
[372824602,1752773460454,-192.788116,0.00018344,2]
[372824604,1752773460463,-192.788116,0.00018344,2]
[372824606,1752773460473,-215.014591,0.00018344,2]
[372824608,1752773460482,-215.014591,0.00018344,2]
[372824610,1752773460491,-209.072414,0.00018344,2]
[372824612,1752773460500,-209.072414,0.00018344,2]
[372824614,1752773460509,-151.0,0.00018344,2]
[372824616,1752773460519,-151.0,0.00018344,2]
[372824617,1752773460528,-608.802714,0.00018344,2]
[372824619,1752773460537,-608.802714,0.00018344,2]
[372824621,1752773460546,-173.209,0.00018344,2]
[372824623,1752773460555,-173.209,0.00018344,2]
[372824625,1752773460565,-168.0,0.00018344,2]
[372824627,1752773460575,-215.0738,0.00018409,2]
[372824629,1752773460585,-168.0,0.00018425,2]
[372824631,1752773460595,-168.0,0.00018427,2]
[372824634,1752773460605,-7301.37818384,0.00018452,2]
[372824635,1752773460615,-151.0,0.00018452,2]
[372824638,1752773460624,-688.509591,0.00018452,2]
[372824640,1752773460634,-151.0,0.00018452,2]
[372824642,1752773460645,-688.509591,0.00018452,2]
[372824644,1752773460655,-334.526732,0.00018452,2]
[372824646,1752773460666,-334.526732,0.00018452,2]
[372824648,1752773460676,-171.170733,0.00018452,2]
[372824650,1752773460685,-334.063091,0.00018452,2]
[372824652,1752773460695,-334.063091,0.00018452,2]
[372824654,1752773460705,-315.944094,0.00018452,2]
[372824656,1752773460715,-315.944094,0.00018452,2]
[372824658,1752773460724,-151.0,0.00018452,2]
[372824660,1752773460733,-162.218661,0.00018452,2]
[372824661,1752773460743,-162.218661,0.00018452,2]
[372824664,1752773460752,-720.612448,0.00018452,2]
[372824666,1752773460762,-720.612448,0.00018452,2]
[372824668,1752773460771,-286.975917,0.00018452,2]
[372824669,1752773460780,-286.975917,0.00018452,2]
[372824672,1752773460789,-168.0,0.00018524,2]
[372824674,1752773460799,-360.0,0.00018578,2]
[372824676,1752773460808,-168.0,0.00018589,2]
[372824677,1752773460818,-1028.0,0.00018593,2]
[372824679,1752773460827,-500.0,0.00018593,2]
[372824682,1752773460837,-591.26,0.00018593,2]
[372824683,1752773460846,-1795.63,0.00018593,2]
[372824685,1752773460856,-460.0,0.00018593,2]
[372824687,1752773460865,-1160.32,0.00018593,2]
[372824689,1752773460875,-460.0,0.00018593,2]
[372824691,1752773460885,-460.0,0.00018593,2]
[372824693,1752773460897,-460.0,0.00018593,2]
[372824696,1752773460906,-460.0,0.00018593,2]
[372824697,1752773460916,-460.0,0.00018593,2]
[372824700,1752773460926,-460.0,0.00018593,2]
[372824702,1752773460935,-1158.91,0.00018593,2]
[372824704,1752773460945,-1432.68,0.00018593,2]
[372824706,1752773460954,-460.0,0.00018593,2]
[372824708,1752773460963,-936.14,0.00018593,2]
[372824710,1752773460972,-460.0,0.00018593,2]
[372824712,1752773460982,-2671.87,0.00018593,2]
[372824714,1752773460991,-797.47,0.00018593,2]
[372824716,1752773461000,-460.0,0.00018593,2]
[372824717,1752773461010,-460.0,0.00018593,2]
[372824720,1752773461020,-460.0,0.00018593,2]
[372824722,1752773461030,-816.79,0.00018593,2]
[372824724,1752773461039,-460.0,0.00018593,2]
[372824726,1752773461049,-805.05,0.00018593,2]
[372824728,1752773461058,-460.0,0.00018593,2]
[372824730,1752773461068,-1238.0,0.00018594,2]
[372824732,1752773461078,-460.0,0.00018594,2]
[372824734,1752773461087,-460.0,0.00018594,2]
[372824736,1752773461096,-460.0,0.00018594,2]
[372824738,1752773461105,-460.0,0.00018594,2]
[372824739,1752773461116,-460.0,0.00018594,2]
[372824741,1752773461127,-1039.19,0.00018594,2]
[372824743,1752773461136,-759.87,0.00018594,2]
[372824745,1752773461147,-460.0,0.00018594,2]
[372824748,1752773461157,-642.67,0.00018594,2]
[372824750,1752773461168,-1332.47,0.00018594,2]
[372824751,1752773461178,-460.0,0.00018594,2]
[372824754,1752773461188,-515.21442378,0.00018594,2]
[372824755,1752773461198,-460.0,0.00018594,2]
[372824757,1752773461208,-822.83,0.00018594,2]
[372824759,1752773461218,-460.0,0.00018594,2]
[372824761,1752773461228,-460.0,0.00018594,2]
[372824763,1752773461239,-460.0,0.00018594,2]
[372824765,1752773461249,-2833.79,0.00018594,2]
[372824767,1752773461259,-460.0,0.00018594,2]
[372824769,1752773461268,-460.0,0.00018594,2]
[372824771,1752773461278,-1025.85,0.00018594,2]
[372824773,1752773461287,-460.0,0.00018594,2]
[372824775,1752773461296,-151.0,0.00018595,2]
[372824777,1752773461306,-151.0,0.00018595,2]
[372824779,1752773461315,-151.0,0.00018595,2]
[372824781,1752773461324,-151.0,0.00018595,2]
[372824783,1752773461334,-151.0,0.00018595,2]
[372824785,1752773461343,-460.0,0.00018595,2]
[372824787,1752773461352,-408.630794,0.00018595,2]
[372824789,1752773461362,-408.630797,0.00018595,2]
[372824791,1752773461371,-377.159111,0.00018595,2]
[372824793,1752773461381,-151.0,0.00018599,2]
[372824795,1752773461392,-151.0,0.00018599,2]
[372824797,1752773461402,-151.0,0.00018605,2]
[372824799,1752773461411,-528.01425676,0.00018608,2]
[372824801,1752773461421,-168.0,0.00018611,2]
[372824803,1752773461430,-700.0,0.00018626,2]
[372824805,1752773461440,-3662.61970837,0.00018632,2]
[372824807,1752773461449,-319.4629673,0.00018636,2]
[372824809,1752773461459,-168.0,0.00018664,2]
[372824811,1752773461469,-576.958633,0.00018665,2]
[372824813,1752773461479,-576.958633,0.00018665,2]
[372824815,1752773461489,-576.958633,0.00018665,2]
[372824817,1752773461498,-576.958633,0.00018665,2]
[372824819,1752773461508,-576.958633,0.00018665,2]
[372824821,1752773461517,-576.958633,0.00018665,2]
[372824823,1752773461527,-576.958633,0.00018665,2]
[372824825,1752773461536,-178.0508326,0.00018665,2]
[372824827,1752773461545,-576.958633,0.00018665,2]
[372824829,1752773461555,-178.0508326,0.00018665,2]
[372824831,1752773461564,-576.958633,0.00018665,2]
[372824833,1752773461573,-178.0508326,0.00018665,2]
[372824835,1752773461583,-576.958633,0.00018665,2]
[372824837,1752773461592,-151.0,0.00018667,2]
[372824839,1752773461601,-163.772039,0.00018667,2]
[372824841,1752773461611,-163.772037,0.00018667,2]
[372824843,1752773461620,-223.287329,0.00018667,2]
[372824845,1752773461630,-223.287324,0.00018667,2]
[372824847,1752773461641,-151.0,0.00018681,2]
[372824849,1752773461651,-234.0,0.0001875,2]
[372824851,1752773461661,-7301.37818384,0.00018762,2]
[372824853,1752773461670,-231.73,0.00018778,2]
[372824855,1752773461679,-179.9640072,0.00018864,2]
[372824857,1752773461689,-500.0,0.00018865,2]
[372824859,1752773461698,-500.0,0.00018865,2]
[372824861,1752773461708,-1028.0,0.00018867,2]
[372824863,1752773461718,-500.0,0.00018867,2]
[372824865,1752773461727,-591.26,0.00018867,2]
[372824866,1752773461736,-1795.63,0.00018867,2]
[372824868,1752773461745,-460.0,0.00018867,2]
[372824870,1752773461755,-1160.32,0.00018867,2]
[372824872,1752773461764,-187.51,0.00018867,2]
[372824875,1752773461774,-460.0,0.00018867,2]
[372824877,1752773461784,-460.0,0.00018867,2]
[372824878,1752773461793,-460.0,0.00018867,2]
[372824880,1752773461803,-460.0,0.00018867,2]
[372824882,1752773461812,-498.69,0.00018867,2]
[372824884,1752773461822,-1158.91,0.00018867,2]
[372824886,1752773461832,-1432.68,0.00018867,2]
[372824888,1752773461841,-593.03,0.00018867,2]
[372824890,1752773461850,-936.14,0.00018867,2]
[372824892,1752773461859,-460.0,0.00018867,2]
[372824894,1752773461869,-2671.87,0.00018867,2]
[372824896,1752773461878,-797.47,0.00018867,2]
[372824898,1752773461888,-460.0,0.00018867,2]
[372824900,1752773461898,-460.0,0.00018867,2]
[372824902,1752773461908,-460.0,0.00018867,2]
[372824904,1752773461917,-816.79,0.00018867,2]
[372824906,1752773461927,-460.0,0.00018867,2]
[372824908,1752773461936,-805.05,0.00018867,2]
[372824910,1752773461945,-460.0,0.00018867,2]
[372824912,1752773461955,-1238.0,0.00018868,2]
[372824914,1752773461964,-460.0,0.00018868,2]
[372824916,1752773461974,-460.0,0.00018868,2]
[372824918,1752773461983,-460.0,0.00018868,2]
[372824920,1752773461992,-2680.42124,0.00018868,2]
[372824922,1752773462002,-2680.42124,0.00018868,2]
[372824924,1752773462013,-460.0,0.00018868,2]
[372824926,1752773462022,-460.0,0.00018868,2]
[372824928,1752773462031,-1039.19,0.00018868,2]
[372824930,1752773462041,-1164.105186,0.00018868,2]
[372824932,1752773462051,-1164.105186,0.00018868,2]
[372824934,1752773462060,-759.87,0.00018868,2]
[372824936,1752773462070,-460.0,0.00018868,2]
[372824947,1752773462172,-642.67,0.00018868,2]
[372824950,1752773462183,-1332.47,0.00018868,2]
[372824952,1752773462194,-460.0,0.00018868,2]
[372824954,1752773462204,-822.83,0.00018868,2]
[372824956,1752773462215,-460.0,0.00018868,2]
[372824957,1752773462225,-460.0,0.00018868,2]
[372824960,1752773462234,-2833.79,0.00018868,2]
[372824961,1752773462245,-460.0,0.00018868,2]
[372824963,1752773462254,-460.0,0.00018868,2]
[372824965,1752773462263,-1025.85,0.00018868,2]
[372824967,1752773462273,-235.297379,0.00018871,2]
[372824969,1752773462282,-235.297379,0.00018871,2]
[372824971,1752773462292,-1397.806462,0.00018871,2]
[372824973,1752773462301,-1397.806462,0.00018871,2]
[372824975,1752773462310,-170.645196,0.00018872,2]
[372824977,1752773462320,-170.645196,0.00018872,2]
[372824979,1752773462329,-500.0,0.000189,2]
[372824981,1752773462338,-209.072414,0.000189,2]
[372824983,1752773462348,-209.072414,0.000189,2]
[372824985,1752773462358,-151.0,0.000189,2]
[372824987,1752773462367,-261.955526,0.000189,2]
[372824989,1752773462377,-608.802714,0.000189,2]
[372824991,1752773462386,-608.802714,0.000189,2]
[372824993,1752773462397,-173.209,0.000189,2]
[372824995,1752773462406,-3981.71857524,0.000189,2]
[372824997,1752773462417,-173.209,0.000189,2]
[372824999,1752773462426,-151.0,0.00019,2]
[372825001,1752773462435,-151.0,0.00019004,2]
[372825003,1752773462445,-5665.65882966,0.00019044,2]
[372825005,1752773462454,-234.0,0.00019057,2]